Workbook

Sheet Laporan Pengeluaran
A1: NAMA PERUSAHAAN
A2: LAPORAN PENGELUARAN
B4: KARYAWAN: | C4: Kim Abercrombie | G4: DIOTORISASI OLEH:
B5: DEPARTEMEN: | C5: Penjualan
B6: AKHIR MINGGU: | C6: 2013-03-10 | G6: TANGGAL:
B7: TINGKAT JARAK TEMPUH: | C7: 0,67
C9: =UPPER(TEXT(C10,"dddd")) -> SENIN | D9: =UPPER(TEXT(D10,"dddd")) -> SELASA | E9: RABU | F9: KAMIS | G9: JUMAT | H9: SABTU | I9: MINGGU
B10: TRANSPORTASI | C10: =WeekEnding-6 -> 2013-03-04 | D10: =WeekEnding-5 -> 2013-03-05 | E10: =WeekEnding-4 -> 2013-03-06 | F10: =WeekEnding-3 -> 2013-03-07 | G10: =WeekEnding-2 -> 2013-03-08 | H10: =WeekEnding-1 -> 2013-03-09 | I10: =WeekEnding -> 2013-03-10 | J10: TOTAL
B11: Mil Dipakai | C11: 145 | J11: =SUM(Transportation[[#This Row],[Day 1]:[Day 7]]) -> 145
B12: Penggantian Biaya Mil | C12: =C11*MileageRate -> Rp97 | D12: Rp0 | E12: Rp0 | F12: Rp0 | G12: Rp0 | H12: Rp0 | I12: Rp0 | J12: =SUM(Transportation[[#This Row],[Day 1]:[Day 7]]) -> Rp97
B13: Parkir dan Tol | F13: Rp17 | J13: =SUM(Transportation[[#This Row],[Day 1]:[Day 7]]) -> Rp17
B14: Sewa Mobil | C14: Rp79 | F14: Rp79 | J14: =SUM(Transportation[[#This Row],[Day 1]:[Day 7]]) -> Rp158
B15: Taksi / Limo | J15: =SUM(Transportation[[#This Row],[Day 1]:[Day 7]]) -> Rp0
B16: Lainnya (Kereta atau Bus) | J16: =SUM(Transportation[[#This Row],[Day 1]:[Day 7]]) -> Rp0
B17: Ongkos Pesawat | F17: Rp235 | J17: =SUM(Transportation[[#This Row],[Day 1]:[Day 7]]) -> Rp235
B18: TOTAL | C18: =SUBTOTAL(109,C12:C17) -> Rp176 | D18: =SUBTOTAL(109,D12:D17) -> Rp0 | F18: =SUBTOTAL(109,F12:F17) -> Rp331 | G18: =SUBTOTAL(109,G12:G17) -> Rp0 | H18: =SUBTOTAL(109,H12:H17) -> Rp0 | I18: =SUBTOTAL(109,I12:I17) -> Rp0 | J18: =SUM(J12:J17) -> Rp507
B20: PENGINAPAN & MAKANAN
B21: Penginapan | C21: Rp145 | J21: =SUM(LodgingMeals[[#This Row],[Day 1]:[Day 7]]) -> Rp145
B22: Sarapan pagi | C22: Rp11 | J22: =SUM(LodgingMeals[[#This Row],[Day 1]:[Day 7]]) -> Rp11
B23: Makan Siang | C23: Rp12 | J23: =SUM(LodgingMeals[[#This Row],[Day 1]:[Day 7]]) -> Rp12
B24: Makan malam | C24: Rp17 | J24: =SUM(LodgingMeals[[#This Row],[Day 1]:[Day 7]]) -> Rp17
B25: Makanan ringan | C25: =C24*MileageRate -> Rp11 | J25: =SUM(LodgingMeals[[#This Row],[Day 1]:[Day 7]]) -> Rp11
B26: Subtotal Makanan | C26: =SUM(C22:C24) -> Rp40 | D26: =SUM(D22:D24) -> Rp0 | E26: Rp0 | F26: Rp0 | G26: Rp0 | H26: Rp0 | I26: Rp0 | J26: =SUM(LodgingMeals[[#This Row],[Day 1]:[Day 7]]) -> Rp40
B27: TOTAL | C27: =SUBTOTAL(109,C21,C26) -> Rp185 | D27: =SUBTOTAL(109,D21,D26) -> Rp0 | E27: Rp0 | F27: Rp0 | G27: Rp0 | H27: Rp0 | I27: Rp0 | J27: =SUBTOTAL(109,J21,J26) -> Rp185
B29: LAIN-LAIN
B30: Persediaan | J30: =SUM(Misc[[#This Row],[Day 1]:[Day 7]]) -> Rp0
B31: Perlengkapan | J31: =SUM(Misc[[#This Row],[Day 1]:[Day 7]]) -> Rp0
B32: Telepon, Faks, Internet | J32: =SUM(Misc[[#This Row],[Day 1]:[Day 7]]) -> Rp0
B33: Lainnya* | J33: =SUM(Misc[[#This Row],[Day 1]:[Day 7]]) -> Rp0
B34: Hiburan* | F34: Rp199 | J34: =SUM(Misc[[#This Row],[Day 1]:[Day 7]]) -> Rp199
B35: TOTAL | C35: =SUBTOTAL(109,Misc[Day 1]) -> Rp0 | D35: =SUBTOTAL(109,Misc[Day 2]) -> Rp0 | E35: =SUBTOTAL(109,Misc[Day 3]) -> Rp0 | F35: =SUBTOTAL(109,Misc[Day 4]) -> Rp199 | G35: =SUBTOTAL(109,Misc[Day 5]) -> Rp0 | H35: =SUBTOTAL(109,Misc[Day 6]) -> Rp0 | I35: =SUBTOTAL(109,Misc[Day 7]) -> Rp0 | J35: =SUBTOTAL(109,Misc[Total]) -> Rp199
B37: TOTAL KESELURUHAN | C37: =SUM(Misc[[#Totals],[Day 1]],LodgingMeals[[#Totals],[Day 1]],Transportation[[#Totals],[Day 1]]) -> Rp362 | D37: =SUM(Misc[[#Totals],[Day 2]],LodgingMeals[[#Totals],[Day 2]],Transportation[[#Totals],[Day 2]]) -> Rp0 | E37: =SUM(Misc[[#Totals],[Day 3]],LodgingMeals[[#Totals],[Day 3]],Transportation[[#Totals],[Day 3]]) -> Rp0 | F37: =SUM(Misc[[#Totals],[Day 4]],LodgingMeals[[#Totals],[Day 4]],Transportation[[#Totals],[Day 4]]) -> Rp530 | G37: =SUM(Misc[[#Totals],[Day 5]],LodgingMeals[[#Totals],[Day 5]],Transportation[[#Totals],[Day 5]]) -> Rp0 | H37: =SUM(Misc[[#Totals],[Day 6]],LodgingMeals[[#Totals],[Day 6]],Transportation[[#Totals],[Day 6]]) -> Rp0 | I37: =SUM(Misc[[#Totals],[Day 7]],LodgingMeals[[#Totals],[Day 7]],Transportation[[#Totals],[Day 7]]) -> Rp0 | J37: =SUM(Misc[[#Totals],[Total]],LodgingMeals[[#Totals],[Total]],Transportation[[#Totals],[Total]]) -> Rp892
J39: TOTAL PENGELUARAN
B40: *Tujuan bisnis untuk "Hiburan" dan item "Lainnya": | J40: =SUM(J18,J27,J35) -> Rp892
J41: PENGAMBILAN UANG DI MUKA
J43: TOTAL PENGGANTIAN BIAYA
J44: =J40-J42 -> Rp892
J45: Harap lampirkan semua tanda terima.
